[Event "*** SCC Grand Prix: Titled Tuesday Blitz"]
[Site "Chess.com"]
[Date "2020.07.07"]
[Round "8"]
[White "GM_LOADING"]
[Black "ljuks68"]
[Result "1-0"]
[WhiteElo "2574"]
[BlackElo "2439"]
[TimeControl "180+1"]
[EndTime "11:33:46 PDT"]
[Termination "GM_LOADING won by resignation"]

1. e4 {[%clk 0:03:00.9]} 1... e6 {[%clk 0:02:59.6]} 2. d4 {[%clk 0:02:59.3]}
2... d5 {[%clk 0:03:00.1]} 3. Nc3 {[%clk 0:02:59]} 3... Bb4 {[%clk 0:02:59.6]}
4. Ne2 {[%clk 0:02:58.8]} 4... Nc6 {[%clk 0:02:58.1]} 5. a3 {[%clk 0:02:57.8]}
5... Ba5 {[%clk 0:02:58.2]} 6. e5 {[%clk 0:02:57.8]} 6... f6 {[%clk 0:02:55.2]}
7. Nf4 {[%clk 0:02:57.4]} 7... fxe5 {[%clk 0:02:47.2]} 8. Qh5+ {[%clk
0:02:56.7]} 8... g6 {[%clk 0:02:47.1]} 9. Nxg6 {[%clk 0:02:54.4]} 9... Nf6
{[%clk 0:02:40.9]} 10. Qh4 {[%clk 0:02:41.7]} 10... Rg8 {[%clk 0:02:39.6]} 11.
Nxe5 {[%clk 0:02:41.4]} 11... Nxe5 {[%clk 0:01:27.3]} 12. dxe5 {[%clk
0:02:39.6]} 12... Ne4 {[%clk 0:01:27.7]} 13. Qxh7 {[%clk 0:02:14.5]} 13... Rf8
{[%clk 0:01:21.2]} 14. Bd3 {[%clk 0:01:58.6]} 14... c5 {[%clk 0:00:58.3]} 15.
Bxe4 {[%clk 0:01:45.7]} 15... dxe4 {[%clk 0:00:56.9]} 16. Qg6+ {[%clk
0:01:45.6]} 16... Rf7 {[%clk 0:00:55.2]} 17. Bh6 {[%clk 0:01:28.3]} 1-0

[Event "*** SCC Grand Prix: Titled Tuesday Blitz"]
[Site "Chess.com"]
[Date "2020.07.07"]
[Round "8"]
[White "GEKKESPONS"]
[Black "Manukyan_Artak"]
[Result "0-1"]
[WhiteElo "2520"]
[BlackElo "2362"]
[TimeControl "180+1"]
[EndTime "11:33:50 PDT"]
[Termination "Manukyan_Artak won by resignation"]

1. d4 {[%clk 0:03:00.9]} 1... Nf6 {[%clk 0:02:58.7]} 2. Nf3 {[%clk 0:02:58.7]}
2... g6 {[%clk 0:02:57.8]} 3. g3 {[%clk 0:02:58.6]} 3... Bg7 {[%clk 0:02:58.7]}
4. Bg2 {[%clk 0:02:59.4]} 4... O-O {[%clk 0:02:59.6]} 5. O-O {[%clk 0:03:00]}
5... d5 {[%clk 0:02:57.3]} 6. c4 {[%clk 0:02:58.3]} 6... c6 {[%clk 0:02:56.7]}
7. Nbd2 {[%clk 0:02:53.4]} 7... Bf5 {[%clk 0:02:56]} 8. b3 {[%clk 0:02:44.6]}
8... Ne4 {[%clk 0:02:52.3]} 9. Bb2 {[%clk 0:02:41.4]} 9... Nd7 {[%clk 0:02:46]}
10. Nh4 {[%clk 0:02:35.1]} 10... Nxd2 {[%clk 0:02:45.5]} 11. Qxd2 {[%clk
0:02:36]} 11... Be4 {[%clk 0:02:40.2]} 12. f3 {[%clk 0:02:34.5]} 12... Bf5
{[%clk 0:02:40.2]} 13. e4 {[%clk 0:02:31.1]} 13... Be6 {[%clk 0:02:36.1]} 14.
Rae1 {[%clk 0:02:18.4]} 14... a5 {[%clk 0:02:04]} 15. exd5 {[%clk 0:02:17.6]}
15... cxd5 {[%clk 0:02:03.5]} 16. Rxe6 {[%clk 0:02:18.2]} 16... fxe6 {[%clk
0:02:03.6]} 17. Bh3 {[%clk 0:02:18.8]} 17... Rf6 {[%clk 0:01:45.9]} 18. Re1
{[%clk 0:02:13.6]} 18... Nf8 {[%clk 0:01:45.3]} 19. f4 {[%clk 0:02:08.6]} 19...
a4 {[%clk 0:01:40.4]} 20. Nf3 {[%clk 0:02:00.7]} 20... axb3 {[%clk 0:01:40.1]}
21. axb3 {[%clk 0:02:01.1]} 21... Ra2 {[%clk 0:01:39.2]} 22. Ng5 {[%clk
0:01:39.7]} 22... Qb6 {[%clk 0:01:38.3]} 23. c5 {[%clk 0:01:04.3]} 23... Qxb3
{[%clk 0:01:36.5]} 24. Re2 {[%clk 0:01:04.8]} 24... h6 {[%clk 0:01:27.5]} 0-1

[Event "*** SCC Grand Prix: Titled Tuesday Blitz"]
[Site "Chess.com"]
[Date "2020.07.07"]
[Round "8"]
[White "Caterpiller35"]
[Black "GianmarcoVaR"]
[Result "0-1"]
[WhiteElo "2379"]
[BlackElo "2537"]
[TimeControl "180+1"]
[EndTime "11:33:52 PDT"]
[Termination "GianmarcoVaR won by resignation"]

1. d4 {[%clk 0:02:59.6]} 1... Nf6 {[%clk 0:02:52.1]} 2. Bg5 {[%clk 0:02:58.6]}
2... Ne4 {[%clk 0:02:51.7]} 3. Bf4 {[%clk 0:02:58.8]} 3... d5 {[%clk 0:02:50.5]}
4. e3 {[%clk 0:02:59.1]} 4... c5 {[%clk 0:02:49.6]} 5. Bd3 {[%clk 0:02:59]} 5...
Nf6 {[%clk 0:02:49]} 6. c3 {[%clk 0:02:58.4]} 6... Nc6 {[%clk 0:02:49.4]} 7. Nd2
{[%clk 0:02:57.1]} 7... Bg4 {[%clk 0:02:49.5]} 8. Ngf3 {[%clk 0:02:57]} 8... e6
{[%clk 0:02:48.8]} 9. Qa4 {[%clk 0:02:49.2]} 9... Nd7 {[%clk 0:02:44.8]} 10. O-O
{[%clk 0:02:43.5]} 10... Be7 {[%clk 0:02:42.5]} 11. Rae1 {[%clk 0:02:34.2]}
11... O-O {[%clk 0:02:33.9]} 12. e4 {[%clk 0:02:33.4]} 12... cxd4 {[%clk
0:02:32]} 13. exd5 {[%clk 0:02:17.1]} 13... Nb6 {[%clk 0:02:29.9]} 14. Qc2
{[%clk 0:02:10.2]} 14... Nxd5 {[%clk 0:02:25.8]} 15. Bxh7+ {[%clk 0:02:05.9]}
15... Kh8 {[%clk 0:02:25.8]} 16. Nxd4 {[%clk 0:02:04.3]} 16... Nxd4 {[%clk
0:02:19.5]} 17. cxd4 {[%clk 0:02:03.2]} 17... Nxf4 {[%clk 0:02:19.1]} 18. Qe4
{[%clk 0:01:53.7]} 18... f5 {[%clk 0:01:48.7]} 19. Qxf4 {[%clk 0:01:50.5]} 19...
Bg5 {[%clk 0:01:38.7]} 20. Qg3 {[%clk 0:01:30.8]} 20... Bxd2 {[%clk 0:01:37.7]}
21. Rxe6 {[%clk 0:01:28]} 21... Kxh7 {[%clk 0:01:34.7]} 22. h3 {[%clk
0:01:26.5]} 22... Bh5 {[%clk 0:01:31.8]} 23. Qd3 {[%clk 0:01:21.8]} 23... Bh6
{[%clk 0:01:26]} 24. Rfe1 {[%clk 0:01:07.1]} 24... Bg6 {[%clk 0:01:25.3]} 25.
R1e3 {[%clk 0:01:01.7]} 25... Bxe3 {[%clk 0:01:23.8]} 0-1

[Event "*** SCC Grand Prix: Titled Tuesday Blitz"]
[Site "Chess.com"]
[Date "2020.07.07"]
[Round "8"]
[White "grandemestregringo"]
[Black "RobertoJBM"]
[Result "0-1"]
[WhiteElo "2506"]
[BlackElo "2716"]
[TimeControl "180+1"]
[EndTime "11:34:02 PDT"]
[Termination "RobertoJBM won by resignation"]

1. d4 {[%clk 0:03:00.6]} 1... d5 {[%clk 0:02:58.5]} 2. c4 {[%clk 0:02:59.1]}
2... c6 {[%clk 0:02:58.7]} 3. Nf3 {[%clk 0:02:58.3]} 3... Nf6 {[%clk 0:02:58.6]}
4. e3 {[%clk 0:02:51.4]} 4... Bf5 {[%clk 0:02:56.7]} 5. Nc3 {[%clk 0:02:51.3]}
5... e6 {[%clk 0:02:56.8]} 6. Nh4 {[%clk 0:02:51.3]} 6... Bg6 {[%clk 0:02:57.4]}
7. Be2 {[%clk 0:02:50.6]} 7... Nbd7 {[%clk 0:02:57.4]} 8. Bd2 {[%clk 0:02:49.3]}
8... Bd6 {[%clk 0:02:57.3]} 9. g3 {[%clk 0:02:49.3]} 9... O-O {[%clk 0:02:56.4]}
10. Nxg6 {[%clk 0:02:49.3]} 10... hxg6 {[%clk 0:02:56.3]} 11. O-O {[%clk
0:02:46.7]} 11... Qe7 {[%clk 0:02:55.2]} 12. c5 {[%clk 0:02:40.1]} 12... Bc7
{[%clk 0:02:54.7]} 13. f4 {[%clk 0:02:40.7]} 13... Ne4 {[%clk 0:02:52.9]} 14.
Nxe4 {[%clk 0:02:37.8]} 14... dxe4 {[%clk 0:02:53.8]} 15. b4 {[%clk 0:02:36.9]}
15... a6 {[%clk 0:02:53.5]} 16. a4 {[%clk 0:02:36]} 16... f5 {[%clk 0:02:53.3]}
17. b5 {[%clk 0:02:31.5]} 17... axb5 {[%clk 0:02:53.6]} 18. axb5 {[%clk
0:02:30.8]} 18... Nf6 {[%clk 0:02:53]} 19. b6 {[%clk 0:02:21.5]} 19... Rxa1
{[%clk 0:02:51]} 20. Qxa1 {[%clk 0:02:22.4]} 20... Bb8 {[%clk 0:02:51.1]} 21.
Qb2 {[%clk 0:02:08.8]} 21... Nd5 {[%clk 0:02:51.1]} 22. Ra1 {[%clk 0:02:08.2]}
22... g5 {[%clk 0:02:51]} 23. Bc4 {[%clk 0:02:04.4]} 23... gxf4 {[%clk
0:02:44.6]} 24. gxf4 {[%clk 0:02:05.3]} 24... g5 {[%clk 0:02:45]} 25. fxg5
{[%clk 0:01:58.6]} 25... Qxg5+ {[%clk 0:02:45.9]} 26. Kh1 {[%clk 0:01:58.5]}
26... Kf7 {[%clk 0:02:43.7]} 27. Rg1 {[%clk 0:01:35.8]} 27... Qh5 {[%clk
0:02:36]} 28. Be1 {[%clk 0:00:49.8]} 28... Nxe3 {[%clk 0:02:16.3]} 29. Qe2
{[%clk 0:00:28.8]} 29... Qxh2+ {[%clk 0:01:55.9]} 30. Qxh2 {[%clk 0:00:25.4]}
30... Bxh2 {[%clk 0:01:56.8]} 31. Kxh2 {[%clk 0:00:25.9]} 31... Nxc4 {[%clk
0:01:56.8]} 0-1

[Event "*** SCC Grand Prix: Titled Tuesday Blitz"]
[Site "Chess.com"]
[Date "2020.07.07"]
[Round "8"]
[White "jonaszmb"]
[Black "jacky72"]
[Result "0-1"]
[WhiteElo "2470"]
[BlackElo "2644"]
[TimeControl "180+1"]
[EndTime "11:34:04 PDT"]
[Termination "jacky72 won by resignation"]

1. e4 {[%clk 0:03:00.9]} 1... e5 {[%clk 0:02:56.5]} 2. Nf3 {[%clk 0:03:00.9]}
2... Nf6 {[%clk 0:02:56.2]} 3. d4 {[%clk 0:03:00.3]} 3... Nxe4 {[%clk
0:02:55.7]} 4. dxe5 {[%clk 0:02:59.8]} 4... d5 {[%clk 0:02:56.6]} 5. Nbd2 {[%clk
0:02:59.7]} 5... Nc5 {[%clk 0:02:48.4]} 6. Nb3 {[%clk 0:02:59.4]} 6... Ne6
{[%clk 0:02:48]} 7. Nbd4 {[%clk 0:02:59.5]} 7... c5 {[%clk 0:02:47.6]} 8. Bb5+
{[%clk 0:02:24.6]} 8... Bd7 {[%clk 0:02:43]} 9. Nxe6 {[%clk 0:02:20.1]} 9...
fxe6 {[%clk 0:02:43.9]} 10. Bxd7+ {[%clk 0:01:53.8]} 10... Qxd7 {[%clk
0:02:43.7]} 11. c4 {[%clk 0:01:48]} 11... d4 {[%clk 0:02:42.8]} 12. O-O {[%clk
0:01:37.2]} 12... Be7 {[%clk 0:02:42.1]} 13. b4 {[%clk 0:01:27.2]} 13... O-O
{[%clk 0:02:34]} 14. bxc5 {[%clk 0:01:01.4]} 14... Bxc5 {[%clk 0:02:34.9]} 15.
Ng5 {[%clk 0:00:58.1]} 15... h6 {[%clk 0:02:31.1]} 16. Ne4 {[%clk 0:00:57.5]}
16... Be7 {[%clk 0:02:29.8]} 17. Qg4 {[%clk 0:00:49.9]} 17... Kh8 {[%clk
0:02:19.4]} 18. f4 {[%clk 0:00:37.2]} 18... Nc6 {[%clk 0:02:17.1]} 19. Rf3
{[%clk 0:00:34.8]} 19... d3 {[%clk 0:02:14.1]} 20. Be3 {[%clk 0:00:31.6]} 20...
Nd4 {[%clk 0:02:09.6]} 21. Rh3 {[%clk 0:00:29.6]} 21... Nf5 {[%clk 0:02:09.8]}
22. Rd1 {[%clk 0:00:20.4]} 22... Qc6 {[%clk 0:02:07.9]} 23. Ng3 {[%clk
0:00:15.2]} 23... Nxe3 {[%clk 0:02:05.3]} 24. Rxh6+ {[%clk 0:00:04.7]} 24...
gxh6 {[%clk 0:02:05.2]} 25. Qh3 {[%clk 0:00:05.1]} 25... Qxg2+ {[%clk
0:02:02.1]} 26. Qxg2 {[%clk 0:00:06]} 26... Nxg2 {[%clk 0:02:02.7]} 27. Kxg2
{[%clk 0:00:06.9]} 27... Rad8 {[%clk 0:02:01.3]} 0-1

[Event "*** SCC Grand Prix: Titled Tuesday Blitz"]
[Site "Chess.com"]
[Date "2020.07.07"]
[Round "8"]
[White "vangulio"]
[Black "1f3_2g41-0"]
[Result "0-1"]
[WhiteElo "2434"]
[BlackElo "2311"]
[TimeControl "180+1"]
[EndTime "11:34:09 PDT"]
[Termination "1f3_2g41-0 won by resignation"]

1. d4 {[%clk 0:03:00.9]} 1... Nf6 {[%clk 0:02:59.6]} 2. Nf3 {[%clk 0:02:58.5]}
2... g6 {[%clk 0:02:59.4]} 3. g3 {[%clk 0:02:58.3]} 3... d5 {[%clk 0:02:59.1]}
4. Bg2 {[%clk 0:02:58.2]} 4... Bg7 {[%clk 0:02:57.5]} 5. O-O {[%clk 0:02:57.7]}
5... O-O {[%clk 0:02:54.8]} 6. c4 {[%clk 0:02:57.9]} 6... c6 {[%clk 0:02:52.7]}
7. cxd5 {[%clk 0:02:56.9]} 7... cxd5 {[%clk 0:02:51.9]} 8. Ne5 {[%clk
0:02:57.6]} 8... Ne4 {[%clk 0:02:50.8]} 9. Nd2 {[%clk 0:02:52.4]} 9... Nxd2
{[%clk 0:02:24]} 10. Bxd2 {[%clk 0:02:45.3]} 10... Nc6 {[%clk 0:02:24.4]} 11.
Bf4 {[%clk 0:01:22]} 11... Bf5 {[%clk 0:02:08.5]} 12. Rc1 {[%clk 0:01:15.9]}
12... Rc8 {[%clk 0:02:05.4]} 13. Qa4 {[%clk 0:01:14.2]} 13... Qb6 {[%clk
0:01:59.7]} 14. Bxd5 {[%clk 0:01:00.1]} 14... Nxd4 {[%clk 0:01:59]} 15. Bc4
{[%clk 0:00:16.3]} 15... Qxb2 {[%clk 0:01:25.2]} 16. Rce1 {[%clk 0:00:12.8]}
16... b5 {[%clk 0:01:22.8]} 0-1

[Event "*** SCC Grand Prix: Titled Tuesday Blitz"]
[Site "Chess.com"]
[Date "2020.07.07"]
[Round "8"]
[White "Kavyev_Ruslan"]
[Black "giantslayer83"]
[Result "0-1"]
[WhiteElo "2553"]
[BlackElo "2733"]
[TimeControl "180+1"]
[EndTime "11:34:11 PDT"]
[Termination "giantslayer83 won by resignation"]

1. d4 {[%clk 0:03:00.9]} 1... Nf6 {[%clk 0:02:57.8]} 2. c4 {[%clk 0:02:59.2]}
2... e6 {[%clk 0:02:57.8]} 3. g3 {[%clk 0:02:59.4]} 3... d5 {[%clk 0:02:57.3]}
4. Nf3 {[%clk 0:02:59.1]} 4... Be7 {[%clk 0:02:52.9]} 5. Bg2 {[%clk 0:02:58.9]}
5... O-O {[%clk 0:02:53.1]} 6. Nc3 {[%clk 0:02:58.9]} 6... dxc4 {[%clk
0:02:52.7]} 7. Ne5 {[%clk 0:02:58.7]} 7... Qd6 {[%clk 0:02:52.9]} 8. Nxc4 {[%clk
0:02:34.6]} 8... Qa6 {[%clk 0:02:52.7]} 9. b3 {[%clk 0:02:20.7]} 9... Rd8 {[%clk
0:02:51.6]} 10. O-O {[%clk 0:02:19.3]} 10... c5 {[%clk 0:02:51.1]} 11. e3 {[%clk
0:02:19.4]} 11... Nc6 {[%clk 0:02:49.6]} 12. Ne2 {[%clk 0:02:11.4]} 12... b5
{[%clk 0:02:44]} 13. Ne5 {[%clk 0:02:10.5]} 13... Bb7 {[%clk 0:02:43.9]} 14.
Nxc6 {[%clk 0:02:07.2]} 14... Bxc6 {[%clk 0:02:44.8]} 15. Bxc6 {[%clk
0:02:06.4]} 15... Qxc6 {[%clk 0:02:45.7]} 16. Bb2 {[%clk 0:02:06.9]} 16... Ne4
{[%clk 0:02:25.5]} 17. h4 {[%clk 0:02:04.4]} 17... e5 {[%clk 0:02:18.7]} 18. Rc1
{[%clk 0:02:02.2]} 18... Qg6 {[%clk 0:02:17]} 19. Qd3 {[%clk 0:01:55.3]} 19...
Nxg3 {[%clk 0:02:08.3]} 20. Qxg6 {[%clk 0:01:33.4]} 20... Nxe2+ {[%clk
0:02:07.5]} 21. Kg2 {[%clk 0:01:34.2]} 21... hxg6 {[%clk 0:02:08.3]} 22. Rc2
{[%clk 0:01:34.7]} 22... exd4 {[%clk 0:01:57.9]} 23. Rxe2 {[%clk 0:01:34.7]}
23... d3 {[%clk 0:01:58.3]} 24. Rd2 {[%clk 0:01:35.3]} 24... Bxh4 {[%clk
0:01:58.7]} 25. Rc1 {[%clk 0:01:34.3]} 25... Rac8 {[%clk 0:01:58.7]} 26. a4
{[%clk 0:01:33]} 26... a6 {[%clk 0:01:58]} 27. Ba3 {[%clk 0:01:30.9]} 27... c4
{[%clk 0:01:57.5]} 28. axb5 {[%clk 0:01:30.2]} 28... axb5 {[%clk 0:01:57.2]} 29.
bxc4 {[%clk 0:01:30.9]} 29... bxc4 {[%clk 0:01:58.1]} 30. Bb2 {[%clk 0:01:30.4]}
30... Be7 {[%clk 0:01:47.4]} 31. Bc3 {[%clk 0:01:24.8]} 31... Rb8 {[%clk
0:01:45]} 32. Bd4 {[%clk 0:01:24.8]} 32... Rdc8 {[%clk 0:01:41.8]} 33. Be5
{[%clk 0:01:21.1]} 33... Bb4 {[%clk 0:01:35.1]} 34. Rb2 {[%clk 0:01:18.1]} 34...
d2 {[%clk 0:01:27.1]} 35. Rd1 {[%clk 0:01:14]} 35... c3 {[%clk 0:01:26.3]} 36.
Rc2 {[%clk 0:01:09.4]} 36... Rb5 {[%clk 0:01:24.3]} 37. Rdxd2 {[%clk 0:01:08.4]}
37... Rxe5 {[%clk 0:01:21.8]} 0-1

[Event "*** SCC Grand Prix: Titled Tuesday Blitz"]
[Site "Chess.com"]
[Date "2020.07.07"]
[Round "8"]
[White "Fortitudine"]
[Black "margarita_2703"]
[Result "0-1"]
[WhiteElo "2254"]
[BlackElo "2393"]
[TimeControl "180+1"]
[EndTime "11:34:11 PDT"]
[Termination "margarita_2703 won on time"]

1. d4 {[%clk 0:03:00.9]} 1... Nf6 {[%clk 0:02:57.1]} 2. Nc3 {[%clk 0:02:54.1]}
2... d5 {[%clk 0:02:56.5]} 3. Bg5 {[%clk 0:02:54.2]} 3... Ne4 {[%clk 0:02:49.8]}
4. Nxe4 {[%clk 0:02:53.7]} 4... dxe4 {[%clk 0:02:48.6]} 5. Qd2 {[%clk
0:02:53.8]} 5... h6 {[%clk 0:02:46.5]} 6. Be3 {[%clk 0:02:36.4]} 6... Bf5 {[%clk
0:02:41.7]} 7. O-O-O {[%clk 0:02:31.3]} 7... c6 {[%clk 0:02:33]} 8. f3 {[%clk
0:02:27]} 8... e6 {[%clk 0:02:30.6]} 9. g3 {[%clk 0:02:12.8]} 9... Nd7 {[%clk
0:02:26.3]} 10. Bg2 {[%clk 0:02:11]} 10... Nf6 {[%clk 0:02:23.6]} 11. Nh3 {[%clk
0:02:00.6]} 11... exf3 {[%clk 0:02:16.9]} 12. exf3 {[%clk 0:01:59.9]} 12... Nd5
{[%clk 0:02:15.9]} 13. Rhe1 {[%clk 0:01:30.2]} 13... Nb4 {[%clk 0:02:10.4]} 14.
Re2 {[%clk 0:00:15.7]} 14... Nxa2+ {[%clk 0:02:07.3]} 15. Kb1 {[%clk 0:00:15.7]}
15... Nb4 {[%clk 0:02:04.4]} 16. Qc3 {[%clk 0:00:09.7]} 16... Qa5 {[%clk
0:01:58.1]} 17. Nf4 {[%clk 0:00:04.5]} 17... Qa2+ {[%clk 0:01:54.8]} 18. Kc1
{[%clk 0:00:04.9]} 18... Qa6 {[%clk 0:01:45.5]} 0-1

[Event "*** SCC Grand Prix: Titled Tuesday Blitz"]
[Site "Chess.com"]
[Date "2020.07.07"]
[Round "8"]
[White "shineatchess"]
[Black "Ati1517"]
[Result "1-0"]
[WhiteElo "2196"]
[BlackElo "2359"]
[TimeControl "180+1"]
[EndTime "11:34:12 PDT"]
[Termination "shineatchess won by resignation"]

1. Nf3 {[%clk 0:03:00.9]} 1... d5 {[%clk 0:02:56.7]} 2. g3 {[%clk 0:03:00.1]}
2... c5 {[%clk 0:02:54.6]} 3. Bg2 {[%clk 0:02:58.2]} 3... Nc6 {[%clk 0:02:54.3]}
4. d4 {[%clk 0:02:58.2]} 4... cxd4 {[%clk 0:02:53.3]} 5. Nxd4 {[%clk 0:02:58.2]}
5... e5 {[%clk 0:02:51.3]} 6. Nxc6 {[%clk 0:02:54.6]} 6... bxc6 {[%clk
0:02:52.2]} 7. c4 {[%clk 0:02:54.7]} 7... Nf6 {[%clk 0:02:49.9]} 8. O-O {[%clk
0:02:47.8]} 8... Be7 {[%clk 0:02:43.3]} 9. Nc3 {[%clk 0:02:35.6]} 9... e4 {[%clk
0:02:41]} 10. Bg5 {[%clk 0:02:14.7]} 10... O-O {[%clk 0:02:35.2]} 11. cxd5
{[%clk 0:02:09.9]} 11... cxd5 {[%clk 0:02:32.8]} 12. Bxf6 {[%clk 0:02:04.3]}
12... Bxf6 {[%clk 0:02:32.5]} 13. Nxd5 {[%clk 0:02:04.2]} 13... Bxb2 {[%clk
0:02:16.9]} 14. Rb1 {[%clk 0:01:59.6]} 14... Rb8 {[%clk 0:02:11.6]} 15. Bxe4
{[%clk 0:01:51]} 15... Be6 {[%clk 0:02:05.1]} 16. Qd3 {[%clk 0:01:35.1]} 16...
h6 {[%clk 0:01:48.5]} 17. Rfd1 {[%clk 0:01:22.6]} 17... Qa5 {[%clk 0:01:43.1]}
18. Ne7+ {[%clk 0:01:03.4]} 18... Kh8 {[%clk 0:01:42.9]} 19. Nc6 {[%clk
0:01:04.3]} 19... Qxa2 {[%clk 0:00:55]} 20. Nxb8 {[%clk 0:01:03.8]} 20... Rxb8
{[%clk 0:00:55.1]} 21. Qd8+ {[%clk 0:01:03.4]} 1-0

[Event "*** SCC Grand Prix: Titled Tuesday Blitz"]
[Site "Chess.com"]
[Date "2020.07.07"]
[Round "8"]
[White "UCantHandleDenker"]
[Black "sewin16"]
[Result "1-0"]
[WhiteElo "2539"]
[BlackElo "2410"]
[TimeControl "180+1"]
[EndTime "11:34:15 PDT"]
[Termination "UCantHandleDenker won by resignation"]

1. Nf3 {[%clk 0:02:55.7]} 1... Nf6 {[%clk 0:02:58]} 2. g3 {[%clk 0:02:54.9]}
2... d5 {[%clk 0:02:57.6]} 3. Bg2 {[%clk 0:02:54.5]} 3... c6 {[%clk 0:02:57.7]}
4. O-O {[%clk 0:02:53.1]} 4... Bf5 {[%clk 0:02:57.2]} 5. d3 {[%clk 0:02:52.4]}
5... e6 {[%clk 0:02:57]} 6. Nbd2 {[%clk 0:02:52.7]} 6... h6 {[%clk 0:02:56.7]}
7. Qe1 {[%clk 0:02:52]} 7... Bh7 {[%clk 0:02:55.7]} 8. e4 {[%clk 0:02:51.5]}
8... Be7 {[%clk 0:02:55.8]} 9. Ne5 {[%clk 0:02:50.4]} 9... O-O {[%clk
0:02:55.2]} 10. f4 {[%clk 0:02:48.7]} 10... Nbd7 {[%clk 0:02:50.3]} 11. Nxd7
{[%clk 0:02:47.7]} 11... Nxd7 {[%clk 0:02:49.7]} 12. Kh1 {[%clk 0:02:47.2]}
12... a5 {[%clk 0:02:32.9]} 13. Qe2 {[%clk 0:02:46.2]} 13... a4 {[%clk
0:02:32.5]} 14. a3 {[%clk 0:02:45.8]} 14... b5 {[%clk 0:02:31.1]} 15. g4 {[%clk
0:02:36.6]} 15... Bd6 {[%clk 0:01:55.1]} 16. e5 {[%clk 0:02:35]} 16... Bc7
{[%clk 0:01:54.5]} 17. Nf3 {[%clk 0:02:32.1]} 17... c5 {[%clk 0:01:52.6]} 18. g5
{[%clk 0:02:31.3]} 18... Bf5 {[%clk 0:01:43.8]} 19. Nh4 {[%clk 0:02:25.5]} 19...
hxg5 {[%clk 0:01:35]} 20. Nxf5 {[%clk 0:02:23.8]} 20... exf5 {[%clk 0:01:34.5]}
21. Bxd5 {[%clk 0:02:15.2]} 21... Nxe5 {[%clk 0:01:24.7]} 22. Bxa8 {[%clk
0:01:57]} 22... Qxa8+ {[%clk 0:01:23.9]} 23. Qg2 {[%clk 0:01:57.5]} 23... Qxg2+
{[%clk 0:01:12.9]} 24. Kxg2 {[%clk 0:01:58.4]} 24... gxf4 {[%clk 0:01:13.3]} 25.
Bxf4 {[%clk 0:01:57.6]} 25... f6 {[%clk 0:01:08.4]} 26. Rae1 {[%clk 0:01:51.6]}
26... g5 {[%clk 0:01:07.9]} 27. Bxe5 {[%clk 0:01:30]} 27... fxe5 {[%clk
0:01:08.8]} 28. h3 {[%clk 0:01:25.3]} 28... Kg7 {[%clk 0:01:08.4]} 29. Re2
{[%clk 0:01:24.6]} 29... Kf6 {[%clk 0:01:06.3]} 30. Rxf5+ {[%clk 0:01:22.1]}
30... Kxf5 {[%clk 0:01:02.4]} 31. Rf2+ {[%clk 0:01:21.9]} 31... Ke6 {[%clk
0:01:01.8]} 32. Rxf8 {[%clk 0:01:22.8]} 1-0

[Event "*** SCC Grand Prix: Titled Tuesday Blitz"]
[Site "Chess.com"]
[Date "2020.07.07"]
[Round "8"]
[White "YellowJacek"]
[Black "DonBroca"]
[Result "1-0"]
[WhiteElo "2259"]
[BlackElo "2122"]
[TimeControl "180+1"]
[EndTime "11:34:20 PDT"]
[Termination "YellowJacek won by resignation"]

1. e4 {[%clk 0:03:00]} 1... c5 {[%clk 0:02:52.2]} 2. Nf3 {[%clk 0:02:59.3]} 2...
d6 {[%clk 0:02:49.8]} 3. d4 {[%clk 0:02:58.8]} 3... cxd4 {[%clk 0:02:46.7]} 4.
Nxd4 {[%clk 0:02:58.5]} 4... Nf6 {[%clk 0:02:46.8]} 5. Nc3 {[%clk 0:02:58.5]}
5... g6 {[%clk 0:02:45.9]} 6. Be3 {[%clk 0:02:57.1]} 6... Bg7 {[%clk 0:02:45.8]}
7. f3 {[%clk 0:02:57.6]} 7... Nc6 {[%clk 0:02:43.9]} 8. Qd2 {[%clk 0:02:57.1]}
8... O-O {[%clk 0:02:43.4]} 9. O-O-O {[%clk 0:02:57]} 9... Bd7 {[%clk
0:02:43.2]} 10. g4 {[%clk 0:02:55.4]} 10... Rc8 {[%clk 0:02:43.2]} 11. h4 {[%clk
0:02:54.5]} 11... h5 {[%clk 0:02:42.2]} 12. g5 {[%clk 0:02:48.9]} 12... Ne8
{[%clk 0:02:33.7]} 13. f4 {[%clk 0:02:47.4]} 13... Bg4 {[%clk 0:02:06.2]} 14.
Be2 {[%clk 0:02:44.3]} 14... Bxe2 {[%clk 0:02:00.8]} 15. Ndxe2 {[%clk
0:02:42.9]} 15... Nb4 {[%clk 0:01:43.3]} 16. Kb1 {[%clk 0:02:36]} 16... Qa5
{[%clk 0:01:36.2]} 17. a3 {[%clk 0:02:32.9]} 17... Nc6 {[%clk 0:01:34.5]} 18.
Rhf1 {[%clk 0:02:27.9]} 18... Nc7 {[%clk 0:01:32.9]} 19. f5 {[%clk 0:02:26.7]}
19... Nb5 {[%clk 0:01:25.8]} 20. f6 {[%clk 0:02:19.6]} 20... exf6 {[%clk
0:01:11.5]} 21. gxf6 {[%clk 0:02:18.9]} 21... Bh8 {[%clk 0:01:07.6]} 22. Nxb5
{[%clk 0:02:18.3]} 22... Qxb5 {[%clk 0:01:08.5]} 23. Bh6 {[%clk 0:02:17.5]}
23... Rfd8 {[%clk 0:01:05.5]} 24. Nc3 {[%clk 0:02:10.2]} 24... Qe5 {[%clk
0:00:55.8]} 25. Bf4 {[%clk 0:02:02]} 25... Qe6 {[%clk 0:00:34.6]} 26. Nd5 {[%clk
0:01:39.6]} 26... Qxe4 {[%clk 0:00:20.7]} 27. Rde1 {[%clk 0:01:37.8]} 27... Qg2
{[%clk 0:00:19.8]} 28. Qxg2 {[%clk 0:01:36.1]} 1-0